fUSD/lending_fUSD_20240227
["ID","MTS","AMOUNT","RATE_DAILY","PERIOD"]
[315433646,1709033433722,-150.0,0.00022862,2]
[315433647,1709033433732,-150.0,0.00022889,2]
[315433648,1709033433742,-150.0,0.00022891,2]
[315433649,1709033433753,-500.0,0.00022898,2]
[315433650,1709033433763,-500.0,0.00022898,2]
[315433651,1709033433774,-579.94,0.00022898,2]
[315433652,1709033433784,-500.0,0.00022898,2]
[315433653,1709033433794,-498.4511,0.00022898,2]
[315433654,1709033433805,-4089.80985909,0.00022899,2]
[315433655,1709033433815,-2713.18869313,0.00022899,2]
[315433656,1709033433825,-500.0,0.00022899,2]
[315433657,1709033433837,-500.0,0.00022899,2]
[315433658,1709033433847,-500.0,0.00022899,2]
[315433659,1709033433857,-500.0,0.00022899,2]
[315433660,1709033433868,-500.0,0.00022899,2]
[315433661,1709033433879,-500.0,0.00022899,2]
[315433662,1709033433889,-500.0,0.00022899,2]
[315433663,1709033433899,-561.26195624,0.00022899,2]
[315433664,1709033433910,-500.0,0.00022899,2]
[315433665,1709033433920,-500.0,0.00022899,2]
[315433666,1709033433930,-500.0,0.00022899,2]
[315433667,1709033433940,-500.0,0.00022899,2]
[315433668,1709033433951,-500.0,0.00022899,2]
[315433669,1709033433962,-500.0,0.00022899,2]
[315433670,1709033433973,-500.0,0.00022899,2]
[315433671,1709033433985,-443.34781017,0.00022899,2]
[315433672,1709033433996,-500.0,0.00022899,2]
[315433673,1709033434008,-500.0,0.00022899,2]
[315433674,1709033434019,-500.0,0.00022899,2]
[315433675,1709033434031,-500.0,0.00022899,2]
[315433676,1709033434041,-500.0,0.00022899,2]
[315433677,1709033434052,-500.0,0.00022899,2]
[315433678,1709033434063,-431.17818989,0.00022899,2]
[315433679,1709033434074,-500.0,0.00022899,2]
[315433680,1709033434086,-500.0,0.00022899,2]
[315433681,1709033434097,-500.0,0.00022899,2]
[315433682,1709033434106,-500.0,0.00022899,2]
[315433683,1709033434116,-500.0,0.00022899,2]
[315433684,1709033434126,-342.39909082,0.00022899,2]
[315433685,1709033434137,-500.0,0.00022899,2]
[315433686,1709033434147,-500.0,0.00022899,2]
[315433687,1709033434157,-500.0,0.00022899,2]
[315433688,1709033434167,-500.0,0.00022899,2]
[315433689,1709033434177,-500.0,0.00022899,2]
[315433690,1709033434187,-500.0,0.00022899,2]
[315433691,1709033434198,-646.88,0.00022899,2]
[315433692,1709033434207,-646.88,0.00022899,2]
[315433693,1709033434218,-646.88,0.00022899,2]
[315433694,1709033434229,-646.88,0.00022899,2]
[315433695,1709033434238,-646.88,0.00022899,2]
[315433696,1709033434248,-646.88,0.00022899,2]
[315433697,1709033434259,-578.5,0.00022899,2]
[315433698,1709033434269,-500.0,0.00022899,2]
[315433699,1709033434279,-500.0,0.00022899,2]
[315433700,1709033434289,-500.0,0.00022899,2]
[315433701,1709033434300,-500.0,0.00022899,2]
[315433702,1709033434583,-500.0,0.00022899,2]
[315433703,1709033434592,-500.0,0.00022899,2]
[315433704,1709033434602,-500.0,0.00022899,2]
[315433705,1709033434611,-500.0,0.00022899,2]
[315433706,1709033434620,-500.0,0.00022899,2]
[315433707,1709033434629,-882.01,0.00022899,2]
[315433708,1709033434639,-882.01,0.00022899,2]
[315433709,1709033434648,-882.01,0.00022899,2]
[315433710,1709033434657,-882.01,0.00022899,2]
[315433711,1709033434666,-882.01,0.00022899,2]
[315433712,1709033434675,-882.01,0.00022899,2]
[315433713,1709033434685,-500.0,0.00022899,2]
[315433714,1709033434694,-500.0,0.00022899,2]
[315433715,1709033434703,-643.6402438,0.00022899,2]
[315433716,1709033434712,-880.49,0.00022899,2]
[315433717,1709033434721,-880.49,0.00022899,2]
[315433718,1709033434729,-880.49,0.00022899,2]
[315433719,1709033434739,-579.94,0.00022899,2]
[315433720,1709033434748,-880.49,0.00022899,2]
[315433721,1709033434757,-579.94,0.00022899,2]
[315433722,1709033434766,-880.49,0.00022899,2]
[315433723,1709033434775,-579.94,0.00022899,2]
[315433724,1709033434785,-579.94,0.00022899,2]
[315433725,1709033434795,-880.49,0.00022899,2]
[315433726,1709033434804,-579.94,0.00022899,2]
[315433727,1709033434813,-579.94,0.00022899,2]
[315433728,1709033434822,-542.53818806,0.00022899,2]
[315433729,1709033434833,-500.0,0.00022899,2]
[315433730,1709033434842,-500.0,0.00022899,2]
[315433731,1709033434851,-500.0,0.00022899,2]
[315433732,1709033434861,-500.0,0.00022899,2]
[315433733,1709033434870,-500.0,0.00022899,2]
[315433734,1709033434879,-500.0,0.00022899,2]
[315433735,1709033434888,-2554.73,0.00022899,2]
[315433736,1709033434898,-2554.73,0.00022899,2]
[315433737,1709033434906,-2554.73,0.00022899,2]
[315433738,1709033434915,-2554.73,0.00022899,2]
[315433739,1709033434924,-2554.73,0.00022899,2]
[315433740,1709033434934,-2554.73,0.00022899,2]
[315433741,1709033434943,-500.0,0.00022899,2]
[315433742,1709033434952,-500.0,0.00022899,2]
[315433743,1709033434961,-500.0,0.00022899,2]
[315433744,1709033434969,-500.0,0.00022899,2]
[315433745,1709033434979,-500.0,0.00022899,2]
[315433746,1709033434993,-246.0,0.00022899,2]
[315433747,1709033435002,-500.0,0.00022899,2]
[315433748,1709033435011,-500.0,0.00022899,2]
[315433749,1709033435020,-344.44,0.00022899,2]
[315433750,1709033435030,-266.44392239,0.00022899,2]
[315433751,1709033435040,-212069.50993856,0.000229,4]
[315433752,1709033435049,-1000.0,0.000229,2]
[315433753,1709033435060,-193.03873203,0.000229,2]
[315433754,1709033435070,-177.98979816,0.000229,2]
[315433755,1709033435079,-2000.0,0.000229,2]
[315433756,1709033435090,-200.0,0.000229,2]
[315433757,1709033435100,-237427.35587633,0.000229,2]
[315433758,1709033435125,-5884.88816091,0.000229,2]
[315433759,1709033435195,-64512.95473004,0.000229,2]
[315433760,1709033435207,-401.55667889,0.000229,2]
[315433761,1709033435219,-1864.88817588,0.000229,2]
[315433762,1709033435235,-446.09013255,0.000229,2]
[315433763,1709033435248,-389.22410135,0.000229,2]
[315433768,1709033438040,-376.79418246,0.000228,2]
[315433769,1709033438230,-145.46620839,0.000228,2]
[315433770,1709033438240,-295.90290147,0.000229,4]
[315433771,1709033438252,-9988.7903319,0.000229,4]
[315433772,1709033438264,-378.99465684,0.000229,4]
[315433773,1709033439251,-303.40868159,0.000229,4]
[315433774,1709033439299,-599.5,0.000229,4]
[315433896,1709033440628,-3530.70611752,0.000229,4]
[315433952,1709033441240,-101355.65337906,0.000229,4]
[315433954,1709033441249,-158.2895668,0.000229,2]
[315433955,1709033441258,-113495.41086641,0.000229,2]
[315433957,1709033441270,-82998.68342329,0.000229,2]
[315433960,1709033441282,-105072.98553965,0.000229,2]
[315433962,1709033441293,-3043.27818,0.000229,2]
[315433973,1709033441404,-3750.000001,0.000229,2]
[315433975,1709033441416,-975.70922295,0.000229,2]
[315434136,1709033443073,-500.0,0.00022898,2]
[315434138,1709033443085,-311.97153213,0.00022899,2]
[315434140,1709033443098,-188.02846787,0.00022899,2]
[315434142,1709033443107,-72415.78705015,0.000229,2]
[315434146,1709033443134,-20106.84647078,0.000229,2]
[315434154,1709033443189,-7548.03416344,0.000229,2]
[315434168,1709033443301,-500.0,0.00022899,2]
[315434170,1709033443310,-4639.94757526,0.000229,2]
[315434172,1709033443321,-1205.70755666,0.000229,2]
[315434474,1709033446078,-155.0,0.00022,2]
[315434476,1709033446087,-152.91066921,0.00022769,2]
[315434478,1709033446097,-500.0,0.00022899,2]
[315434480,1709033446106,-192.08933079,0.00022899,2]
[315434908,1709033473982,576.91367284,0.0001,3]
[315434911,1709033638614,25726.12563231,0.0001,2]
[315434912,1709033656615,17150.75042154,0.0001,2]
[315434913,1709033674639,14292.29201795,0.0001,2]
[315434915,1709033962596,14292.29201795,0.0001,2]
[315434919,1709033979090,7446.28414135,0.0001,2]
[315434921,1709033999086,7446.28414135,0.0001,2]
[315434922,1709034019093,7446.28414135,0.0001,2]
[315434923,1709034035092,7446.28414135,0.0001,2]
[315434924,1709034052151,230.19286931,9.95e-05,2]
[315434926,1709034424436,204.0,0.00017274,2]
[315434928,1709034431149,-150.41437121,0.00018264,2]
[315434931,1709034564149,-304.46453908,0.00018264,2]
[315434932,1709034564168,-577.38082758,0.00019016,2]
[315434933,1709034564189,-2157.15808798,0.00019017,2]
[315434934,1709034564209,-729.45,0.00019018,2]
[315434935,1709034564230,-151.35436819,0.00019174,2]
[315434936,1709034564251,-170.7049937,0.00019648,5]
[315434938,1709034632218,-33.2950063,0.00019648,5]
[315434939,1709034632228,-202.97635939,0.00019648,2]
[315434940,1709034632237,-113.72863431,0.00019926,2]
[315434941,1709034632249,-37.62573385,0.00019926,2]
[315434942,1709034632259,-151.14630182,0.0002,2]
[315434943,1709034632268,-150.0,0.00020137,2]
[315434944,1709034632277,-300.0,0.00020174,2]
[315434945,1709034632286,-651.86749771,0.00020428,2]
[315434946,1709034632295,-151.35436816,0.00020678,2]
[315434947,1709034632305,-499.99,0.00020678,2]
[315434948,1709034632314,-2630.86176449,0.00020678,2]
[315434949,1709034632326,-292.69823551,0.00020678,2]
[315434950,1709034632337,-200.0,0.00020866,2]
[315434951,1709034632349,-200.30911076,0.00020871,2]
[315434952,1709034632363,-102.05088924,0.00020871,2]
[315434953,1709034632373,-239.73106404,0.00020892,2]
[315434954,1709034632395,-10.26893596,0.00020892,2]
[315434955,1709034632406,-289.72106404,0.00020892,2]
[315434956,1709034632418,-444.82893596,0.00020892,2]
[315434957,1709034632429,-150.0,0.00020923,2]
[315434958,1709034632439,-443.3,0.00020926,2]
[315434959,1709034632448,-447.02,0.00020929,2]
[315434960,1709034632458,-300.0,0.00020935,2]
[315434961,1709034632467,-2582.46177163,0.00020936,2]
[315434962,1709034632479,-536.87822837,0.00020936,2]
[315434963,1709034632488,-1417.12066983,0.00020936,2]
[315434964,1709034632501,-582.87933017,0.00020936,2]
[315434965,1709034632511,-579.02,0.00020938,2]
[315434966,1709034632522,-150.0,0.00020953,2]
[315434967,1709034632531,-951.06527665,0.00020954,2]
[315434968,1709034632555,-456.81059646,0.00020954,2]
[315434969,1709034632567,-3226.63412689,0.00020954,2]
[315434970,1709034632577,-250.0,0.00020968,2]
[315434971,1709034632586,-152.05,0.00021086,2]
[315434972,1709034632596,-729.45,0.00021282,2]
[315434973,1709034632605,-552.98,0.0002134,2]
[315434974,1709034632614,-151.35436816,0.00021429,2]
[315434975,1709034632623,-189.0,0.00021437,2]
[315434976,1709034632632,-158.55,0.00021918,2]
[315434977,1709034632641,-154.37,0.00021918,2]
[315434978,1709034632653,-482.23,0.00021918,2]
[315434979,1709034632662,-173.5,0.0002197,2]
[315434980,1709034632671,-554.33255349,0.00021979,2]
[315434982,1709034632890,-16.7329687,0.00021979,2]
[315434983,1709034632901,-205.58358803,0.00021988,2]
[315434984,1709034632910,-119.7304595,0.0002199,2]
[315434985,1709034632924,-85.85312853,0.0002199,2]
[315434986,1709034632933,-571.06552219,0.00021992,2]
[315434987,1709034632943,-205.58358803,0.00021994,2]
[315434988,1709034632952,-571.06552219,0.00021998,2]
[315434989,1709034632962,-205.58358803,0.00021998,2]
[315434990,1709034632971,-571.06552219,0.00021999,2]
[315434991,1709034632980,-155.0,0.00022,2]
[315434992,1709034632989,-177.9,0.00022,2]
[315434993,1709034632998,-204.0,0.00022021,8]
[315434994,1709034633007,-211.02721307,0.00022102,3]
[315434995,1709034633016,-1351.13324186,0.00022102,3]
[315434996,1709034633025,-1000.0,0.00022102,3]
[315434997,1709034633034,-175.56662093,0.00022103,3]
[315434998,1709034633044,-299.5995505,0.00022104,3]
[315434999,1709034633053,-277.16665199,0.00022104,3]
[315435000,1709034633062,-200.10648258,0.00022104,3]
[315435001,1709034633071,-151.35436816,0.00022181,2]
[315435002,1709034633080,-943.52291191,0.000222,2]
[315435003,1709034633089,-150.0,0.00022228,2]
[315435004,1709034633098,-150.0,0.00022228,2]
[315435005,1709034633107,-150.0,0.00022228,2]
[315435006,1709034633116,-150.0,0.00022228,2]
[315435007,1709034633125,-150.0,0.0002229,2]
[315435008,1709034633134,-1500.0,0.00022487,2]
[315435009,1709034633144,-685.30471987,0.000225,2]
[315435010,1709034633155,-189.0,0.00022533,2]
[315435011,1709034633164,-177.9,0.00022548,2]
[315435012,1709034633173,-579.02,0.00022581,2]
[315435013,1709034633182,-9055.0,0.000226,2]
[315435014,1709034633192,-564.5306,0.000226,2]
[315435015,1709034633201,-1192.0,0.000226,2]
[315435016,1709034633211,-158.55,0.00022648,2]
[315435017,1709034633220,-154.37,0.00022648,2]
[315435018,1709034633229,-150.0,0.00022655,2]
[315435019,1709034633238,-1500.0,0.00022665,2]
[315435020,1709034633247,-88846.96159359,0.00022699,2]
[315435021,1709034633259,-832.48880502,0.00022699,2]
[315435030,1709034638203,-834.32777892,0.00021339,2]
[315435032,1709034638217,-1322.83030906,0.00021339,2]
[315435034,1709034638226,-4670.78211094,0.00022699,2]
[315435036,1709034638316,-473.12145468,0.00022699,2]
[315435037,1709034638482,-5644.4,0.00022699,2]
[315435257,1709034640867,-8803.30215803,0.00022699,2]
[315435259,1709034640880,-6572.75976874,0.00022699,2]
[315435320,1709034641584,-38744.01229019,0.00022699,2]
[315435322,1709034641594,-685.30471987,0.000227,2]
[315435324,1709034641605,-258.9237,0.000227,2]
[315435326,1709034641615,-39674.54485625,0.000227,2]
[315435329,1709034641628,-25061.78314375,0.000227,2]
[315435331,1709034641637,-2000.0,0.000227,2]
[315435333,1709034641647,-155.05,0.0002274,2]
[315435335,1709034641658,-155.46,0.0002274,2]
[315435337,1709034641667,-150.0,0.00022762,2]
[315435339,1709034641676,-150.0,0.00022766,2]
[315435341,1709034641685,-800.0,0.00022766,2]
[315435343,1709034641694,-200.0,0.00022766,2]
[315435345,1709034641704,-152.91066921,0.00022769,2]
[315435347,1709034641714,-898.71,0.0002279,3]
[315435349,1709034641723,-449.36,0.0002279,3]
[315435351,1709034641732,-224.68,0.0002279,3]
[315435353,1709034641741,-674.05,0.0002279,3]
[315435355,1709034641750,-2726.6063,0.000228,2]
[315435357,1709034641760,-81661.3272,0.000228,2]
[315435359,1709034641769,-12629.3761,0.000228,2]
[315435361,1709034641778,-150.0,0.00022809,2]
[315435363,1709034641787,-1644.9739764,0.00022858,2]
[315435365,1709034641797,-150.0,0.00022883,2]
[315435367,1709034641806,-3027.9280039,0.00022894,2]
[315435369,1709034641816,-500.0,0.00022898,2]
[315435371,1709034641825,-1000.0,0.00022898,5]
[315435373,1709034641835,-163.36180828,0.00022899,2]
[315435375,1709034641844,-500.0,0.00022899,2]
[315435377,1709034641854,-500.0,0.00022899,2]
[315435379,1709034641863,-500.0,0.00022899,2]
[315435381,1709034641873,-500.0,0.00022899,2]
[315435383,1709034641882,-500.0,0.00022899,2]
[315435385,1709034641891,-500.0,0.00022899,2]
[315435387,1709034641901,-553.9616673,0.00022899,2]
[315435389,1709034641912,-258.60351982,0.00022899,5]
[315435391,1709034641921,-500.0,0.00022899,2]
[315435393,1709034641930,-500.0,0.00022899,2]
[315435395,1709034641940,-500.0,0.00022899,2]
[315435397,1709034641950,-500.0,0.00022899,2]
[315435399,1709034641960,-661.51,0.00022899,2]
[315435401,1709034641969,-661.51,0.00022899,2]
[315435403,1709034641979,-660.37,0.00022899,2]
[315435405,1709034641988,-660.37,0.00022899,2]
[315435407,1709034641998,-500.0,0.00022899,2]
[315435409,1709034642007,-500.0,0.00022899,2]
[315435411,1709034642017,-500.0,0.00022899,2]
[315435413,1709034642028,-500.0,0.00022899,2]
[315435415,1709034642037,-1916.04,0.00022899,2]
[315435417,1709034642047,-1916.04,0.00022899,2]
[315435419,1709034642056,-500.0,0.00022899,2]
[315435421,1709034642067,-500.0,0.00022899,2]
[315435423,1709034642077,-500.0,0.00022899,2]
[315435425,1709034642087,-500.0,0.00022899,2]
[315435427,1709034642096,-500.0,0.00022899,2]
[315435429,1709034642106,-246040.87454011,0.000229,2]
[315435435,1709034642149,-270.8413611,0.000229,2]
[315435437,1709034642161,-48126.51876955,0.000229,2]
[315435441,1709034642189,-15074.13141578,0.000229,2]
[315435600,1709034644367,-422.23379413,0.000229,2]
[315435601,1709034644380,-1128.12487,0.000229,2]
[315435602,1709034644428,-1214.79818361,0.000229,2]
[315435603,1709034644492,-734.94999794,0.000229,2]
[315435604,1709034644504,-453.1300005,0.000229,2]
[315435605,1709034644515,-513.62821232,0.000229,2]
[315435606,1709034644526,-1012.97035628,0.000229,2]
[315435607,1709034644554,-476.98149757,0.000229,2]
[315435609,1709034644565,-265.36254297,0.000229,2]
[315435612,1709034644578,-863.99423,0.000229,2]
[315435615,1709034644619,-1942.58518664,0.000229,2]
[315435616,1709034644636,-1258.79604549,0.000229,2]
[315435619,1709034644697,-18344.68522739,0.000229,2]
[315435620,1709034644706,-2000.0,0.000229,2]
[315435621,1709034644715,-200.0,0.000229,2]
[315435622,1709034644724,-434.11928166,0.000229,2]
[315435623,1709034644736,-823.08195931,0.000229,2]
[315435624,1709034644766,-651.86749771,0.00022899,2]
[315435625,1709034644775,-20479.90186833,0.000229,2]
[315435626,1709034644786,-3052.58213775,0.000229,2]
[315435627,1709034644798,-2445.87873483,0.000229,2]
[315435628,1709034644810,-1463.67690476,0.000229,2]
[315435629,1709034644821,-13797.22591204,0.000229,2]
[315435630,1709034644833,-203.12110704,0.000229,2]
[315435631,1709034644842,-2000.0,0.000229,2]
[315435632,1709034644851,-200.0,0.000229,2]
[315435633,1709034644861,-235.80454684,0.000229,2]
[315435634,1709034644871,-3421.14689623,0.000229,2]
[315435635,1709034644880,-2459.00635368,0.000229,2]
[315435636,1709034644892,-455.95507693,0.000229,2]
[315435637,1709034644904,-364.793598,0.000229,2]
[315435642,1709034646362,-1720.24497139,0.000229,2]
[315435643,1709034646371,-157.68,0.00022914,2]
[315435644,1709034646381,-151.35436816,0.00022933,2]
[315435645,1709034646391,-313.78626779,0.00022938,2]
[315435646,1709034646400,-206.58009533,0.00022939,2]
[315435647,1709034646410,-170.51556276,0.00022939,2]
[315435648,1709034646420,-351.16764117,0.00022939,2]
[315435649,1709034646431,-619.84165137,0.00022939,2]
[315435650,1709034646441,-300.0,0.00022949,2]
[315435651,1709034646450,-203.12110636,0.00022951,2]
[315435652,1709034646459,-398.51097467,0.00022955,2]
[315435653,1709034646468,-152.0,0.00022967,3]
[315435654,1709034646478,-3421.14689623,0.00022991,2]
[315435655,1709034646488,-661.51,0.00022992,2]
[315435656,1709034646497,-660.37,0.00022992,2]
[315435657,1709034646506,-500.0,0.00022992,2]
[315435658,1709034646516,-1916.04,0.00022992,2]
[315435659,1709034646525,-500.0,0.00022992,2]
[315435660,1709034646535,-500.0,0.00022992,2]
[315435661,1709034646544,-32553.76540868,0.00022993,2]
[315435662,1709034646556,-6148.9862,0.00022993,2]
[315435663,1709034646567,-1706.0718,0.00022993,2]
[315435664,1709034646579,-667.14499448,0.00022993,2]
[315435665,1709034646600,-376.18116158,0.00022993,2]
[315435666,1709034646611,-8089.99998957,0.00022993,2]
[315435667,1709034646669,-472.29278193,0.00022993,2]
[315435669,1709034646680,-14151.16769797,0.00022993,2]
[315435671,1709034646692,-419.59727266,0.00022993,2]
[315435674,1709034646707,-19005.23024513,0.00022993,2]
[315435676,1709034646719,-16862.90271544,0.00022993,2]
[315435678,1709034646728,-9316.84254261,0.00022996,2]
[315435680,1709034646737,-155.0,0.00022998,2]
[315435682,1709034646747,-242.26121704,0.00022998,4]
[315435684,1709034646756,-500.0,0.00022998,2]
[315435686,1709034646765,-500.0,0.00022998,2]
[315435688,1709034646774,-500.0,0.00022998,2]
[315435690,1709034646783,-500.0,0.00022998,2]
[315435691,1709034646793,-4677.03883544,0.00022999,2]
[315435692,1709034646803,-170.20019681,0.00022999,2]
[315435693,1709034646812,-655.84356825,0.00022999,2]
[315435694,1709034724960,205.0,0.00017274,2]
[315435695,1709034759364,169.14696616,0.00017274,2]
[315435698,1709035128037,42191.50155652,0.00017274,2]
[315435699,1709035128064,1022132.4525804,0.00017274,2]
[315435700,1709035144020,1000121.46567496,0.00017274,2]
[315435701,1709035144048,64202.48846196,0.00017274,2]
[315435702,1709035155060,-1000000.0,0.00024,30]
[315435703,1709035162007,907863.51153804,0.00017274,2]
[315435704,1709035162039,770.0,0.00017274,2]
[315435705,1709035162065,270.0,0.00017274,2]
[315435706,1709035162092,155420.44259888,0.00017274,2]
[315435707,1709035180007,1064323.95413692,0.00017274,2]
[315435708,1709035200006,780255.6032642,0.00017274,2]
[315435709,1709035225194,-57000.30901073,0.00024,30]
[315435710,1709035517109,-20999.0,0.00024,30]
[315435711,1709035597137,-201.02277556,0.00017271,2]
[315435712,1709035626060,-30.65865309,0.00017271,2]
[315435713,1709035626080,-128.52087382,0.00017272,2]
[315435715,1709035654103,-26.47912618,0.00017272,2]
[315435716,1709035654123,-135.88065086,0.00017272,2]
[315435718,1709035748113,-95.80077779,0.00017272,2]
[315435719,1709035748135,-2157.15808798,0.00017273,2]
[315435720,1709035748156,-1111.1012051,0.00017273,2]
[315435721,1709035748181,-63904.25942652,0.00017274,2]
[315435722,1709035761146,-231.68142865,0.00017273,2]
[315435723,1709035761168,-119205.67009116,0.00017274,2]
[315435724,1709035761187,-667.62,0.00019195,2]
[315435725,1709035761208,-158.99630908,0.00019404,2]
[315435726,1709035761227,-407.62749476,0.0001964,2]
[315435731,1709035831390,-135.59542,0.0001964,2]
[315435732,1709035831400,-220.99606495,0.0002,2]
[315435734,1709035831446,-1021.44500401,0.0002,2]
[315435735,1709035831456,-195.0,0.00020641,2]
[315435736,1709035831465,-499.99,0.00020641,2]
[315435737,1709035831475,-472.8,0.00021095,2]
[315435738,1709035831485,-294.47,0.00021097,2]
[315435739,1709035831494,-250.0,0.00021102,2]
[315435740,1709035831504,-250.0,0.00021104,2]
[315435741,1709035831514,-150.0,0.00021113,2]
[315435742,1709035831523,-1.61017065,0.00021136,2]
[315435743,1709035831572,-498.38982935,0.00021136,2]
[315435744,1709035831581,-444.81857065,0.00021192,2]
[315435745,1709035831593,-1555.18142935,0.00021192,2]
[315435746,1709035831604,-957.74542815,0.00021209,2]
[315435747,1709035831678,-42.25457185,0.00021209,2]
[315435748,1709035831690,-221.65,0.00021327,2]
[315435749,1709035831699,-163.94,0.00021339,2]
[315435750,1709035831709,-151.97,0.00021362,2]
[315435751,1709035831719,-667.62,0.00021459,2]
[315435752,1709035831739,-344.82,0.00021489,2]
[315435753,1709035831750,-424.3,0.00021489,2]
[315435754,1709035831760,-168.75,0.0002151,2]
[315435755,1709035831770,-386.9263496,0.00021549,2]
[315435756,1709035831780,-195.0,0.00021737,2]
[315435757,1709035831790,-2157.15808798,0.00021917,2]
[315435758,1709035831800,-150.24,0.00021918,2]
[315435759,1709035831811,-160.64,0.00021918,2]
[315435760,1709035831821,-202.25,0.00021918,2]
[315435761,1709035831832,-414.05587619,0.00021978,2]
[315435762,1709035831842,-215.30905562,0.00021986,2]
[315435763,1709035831853,-414.05587619,0.00021987,2]
[315435764,1709035831863,-262.7860663,0.00021992,2]
[315435765,1709035831873,-414.05587619,0.00021994,2]
[315435766,1709035831884,-414.05587619,0.00021994,2]
[315435767,1709035831894,-215.30905562,0.00021995,2]
[315435768,1709035831904,-215.30905562,0.00021997,2]
[315435769,1709035831915,-215.30905562,0.00021997,2]
[315435770,1709035831925,-458.07338684,0.00022,2]
[315435771,1709035831934,-236.89446148,0.00022,2]
[315435772,1709035831944,-1750.0,0.00022,3]
[315435773,1709035831954,-206.0,0.0002209,2]
[315435774,1709035831964,-651.7635769,0.00022104,3]
[315435775,1709035831973,-282.70983503,0.00022104,3]
[315435776,1709035831984,-259.34281351,0.00022104,3]
[315435777,1709035831993,-150.24,0.00022283,2]
[315435778,1709035832003,-424.3,0.00022311,2]
[315435779,1709035832013,-151.29,0.00022311,2]
[315435780,1709035832023,-150.0,0.00022311,2]
[315435781,1709035832033,-424.3,0.00022311,2]
[315435782,1709035832042,-424.3,0.00022311,2]
[315435783,1709035832052,-424.3,0.00022311,2]
[315435784,1709035832062,-424.3,0.00022311,2]
[315435785,1709035832072,-206.0,0.0002236,2]
[315435786,1709035832082,-166.57,0.00022363,2]
[315435787,1709035832092,-214.015,0.00022517,2]
[315435788,1709035832102,-601.0,0.00022517,2]
[315435789,1709035832112,-277.0,0.00022517,2]
[315435790,1709035832123,-1008.0,0.00022517,2]
[315435791,1709035832134,-431.0,0.00022517,2]
[315435792,1709035832144,-860.0,0.00022517,2]
[315435793,1709035832154,-1137.0,0.00022517,2]
[315435794,1709035832170,-2907.0,0.00022517,2]
[315435795,1709035832180,-338.0,0.00022517,2]
[315435796,1709035832191,-812.691,0.00022517,2]
[315435797,1709035832201,-322.0,0.00022517,2]
[315435798,1709035832212,-162.0,0.00022517,2]
[315435799,1709035832222,-2000.0,0.000226,2]
[315435800,1709035832232,-206.0,0.0002263,2]
[315435801,1709035832242,-150.24,0.00022648,2]
[315435802,1709035832252,-163.0,0.00022671,2]
[315435803,1709035832262,-472.8,0.00022739,2]
[315435804,1709035832271,-500.0,0.00022739,2]
[315435805,1709035832281,-542.42,0.00022739,2]
[315435806,1709035832291,-500.0,0.00022739,2]
[315435807,1709035832301,-500.0,0.00022739,2]
[315435808,1709035832311,-500.0,0.00022739,2]
[315435809,1709035832321,-1195.73,0.00022739,2]
[315435810,1709035832331,-500.0,0.00022739,2]
[315435811,1709035832341,-500.0,0.00022739,2]
[315435812,1709035832350,-500.0,0.00022739,2]
[315435813,1709035832360,-500.0,0.00022739,2]
[315435814,1709035832369,-500.0,0.00022739,2]
[315435815,1709035832378,-500.0,0.00022739,2]
[315435816,1709035832388,-500.0,0.00022739,2]
[315435817,1709035832398,-500.0,0.00022739,2]
[315435818,1709035832407,-500.0,0.00022739,2]